Cogmind - Beta 11 X8 --- EXPLORER MODE // 2021.10.26 @ 02:50:58 // Winter2019/RPGLIKE Player: jfk Result: Self-destructed Performance ------------- Evolutions (3) 1500 Regions Visited (4) 800 Robots Destroyed (9) 45 Value Destroyed (135) 135 Prototype IDs (2) 40 Alien Tech Used (0) 0 Bonus (200) 200 TOTAL SCORE: 2720 Bonus ------- Pacifist 200 Cogmind --------- Core Integrity 1000/1600 Matter 139/300 Energy 100/100 System Corruption 0% Temperature Cool (0) Movement Hovering (50) Location -7/Factory Parts ------- > --- POWER (1) -------- (None) > --- PROPULSION (1) --- Cooled Airjet > --- UTILITY (1) ------ (None) > --- WEAPON (1) ------- Improved Medium Laser > --- INVENTORY (0) ---- (None) Peak State ------------ > --- POWER ------------ (None) > --- PROPULSION ------- Cooled Airjet > --- UTILITY ---------- (None) > --- WEAPON ----------- Improved Medium Laser > --- INVENTORY -------- (None) [Rating: 8] Favorites ----------- Power None Propulsion Cooled Airjet Hover Unit Cooled Airjet Utility None Weapon Improved Medium Laser Energy Gun Improved Medium Laser Build | -11 -10 -9 -8 -7 ------- Run | Scr Mat Mat Mat Fac Slots Evolved . | . . . . . Power . | . . . . . Propulsion . | . . . . . Utility . | . . . . . Weapon . | . . . . . Parts Attached 2 | . . 1 1 . Power . | . . . . . Engine . | . . . . . Core . | . . . . . Reactor . | . . . . . Propulsion 1 | . . . 1 . Treads . | . . . . . Leg . | . . . . . Wheel . | . . . . . Hover 1 | . . . 1 . Flight . | . . . . . Utility . | . . . . . Device . | . . . . . Storage . | . . . . . Processor . | . . . . . Hackware . | . . . . . Protection . | . . . . . Artifact . | . . . . . Weapon 1 | . . 1 . . Energy Gun 1 | . . 1 . . Energy Cannon . | . . . . . Ballistic Gun . | . . . . . Ballistic Cannon . | . . . . . Launcher . | . . . . . Special Weapon . | . . . . . Impact Weapon . | . . . . . Slashing Weapon . | . . . . . Piercing Weapon . | . . . . . Special Melee Weapon . | . . . . . Unidentified Prototypes 2 | . . 1 1 . Parts Lost . | . . . . . Power . | . . . . . Propulsion . | . . . . . Utility . | . . . . . Weapon . | . . . . . Highest Loss Streak . | . . . . . Average Slot Usage (%) 30 | . . 20 31 50 Hover 9 | . . . 6 25 Energy Gun 20 | . . 20 25 25 Naked Turns 72 | . 51 21 . . Heaviest Build 3 | . . 3 3 3 Greatest Support 8 | 3 3 3 8 8 Greatest Overweight (x) . | . . . . . Average Overweight (x) . | . . . . . Largest Inventory Capacity . | . . . . . Average Capacity . | . . . . . Most Carried . | . . . . . Average Carried . | . . . . . Final Capacity . | . . . . . Final Carried . | . . . . . Class Distribution -------------------- 100% | Hacker-Mutant Dominant Class ---------------- Hacker-Mutant | -10/Materials Hacker-Mutant | -9/Materials Hacker-Mutant | -8/Materials Hacker-Mutant | -7/Factory Resources | -11 -10 -9 -8 -7 ----------- Run | Scr Mat Mat Mat Fac Matter Collected 44 | . . . 44 . Remotely . | . . . . . Salvage Created 113 | . . 69 44 . Parts 16 | . . 10 6 . Haulers Intercepted . | . . . . . Recyclers Shooed . | . . . . . Parts Field Recycled . | . . . . . Retrieved Matter . | . . . . . Parts Self-Destructed . | . . . . . Prevented . | . . . . . Kills | -11 -10 -9 -8 -7 ------- Run | Scr Mat Mat Mat Fac Combat Hostiles Destroyed 9 | . . 6 3 . Guns 9 | . . 6 3 . Classes Destroyed 2 | . . 2 . . Swarmer 8 | . . 5 3 . Sentry 1 | . . 1 . . Best Kill Streak 5 | . . 5 3 . Combat Bots Only 5 | . . 5 3 . Max Kills in Single Turn 1 | . . 1 1 . Gunslinging . | . . . . . Exploded . | . . . . . Melee . | . . . . . Uniques/NPCs Destroyed . | . . . . . Combat | -11 -10 -9 -8 -7 -------- Run | Scr Mat Mat Mat Fac Damage Taken 665 | . 97 210 136 222 Core 600 | . 97 193 128 182 Absorbed by Shields . | . . . . . Redirected to Core 196 | . . 55 19 122 Core Remaining (%) 66 | 100 83 51 30 . Volleys Fired 36 | . . 22 12 2 Largest 1 | . . 1 1 1 Hottest 56 | . . 56 56 56 Shots Fired 36 | . . 22 12 2 Gun 36 | . . 22 12 2 Cannon . | . . . . . Launcher . | . . . . . Special . | . . . . . Kinetic . | . . . . . Thermal 36 | . . 22 12 2 Explosive . | . . . . . Electromagnetic . | . . . . . Robot Hit Streak 7 | . . 6 7 . Robot Miss Streak 1 | . . 1 1 . Penetration Max . | . . . . . Secondary Targets . | . . . . . Shots Hit Robots 28 | . . 19 9 . Core Hits 12 | . . 7 5 . Critical Kills . | . . . . . Critical Parts Destroyed . | . . . . . Critical Strikes 2 | . . 1 1 . Burn 2 | . . 1 1 . Melee Attacks . | . . . . . Impact . | . . . . . Slashing . | . . . . . Piercing . | . . . . . Sneak Attacks . | . . . . . Combat Hostiles . | . . . . . Follow-up Attacks . | . . . . . Damage Inflicted 481 | . 2 322 157 . Guns 475 | . . 322 153 . Cannons . | . . . . . Explosions . | . . . . . Melee . | . . . . . Ramming 6 | . 2 . 4 . Kinetic . | . . . . . Thermal 475 | . . 322 153 . Explosive . | . . . . . Electromagnetic . | . . . . . Impact . | . . . . . Slashing . | . . . . . Piercing . | . . . . . Highest Corruption . | . . . . . Average Corruption . | . . . . . Corruption Purged . | . . . . . Overload Shots . | . . . . . Overflow Damage . | . . . . . Projectiles . | . . . . . Explosions . | . . . . . Melee . | . . . . . Knockbacks . | . . . . . Impact . | . . . . . Kinetic . | . . . . . Secondary . | . . . . . Self-Inflicted Damage 2 | . 1 . 1 . Shots . | . . . . . Rammed 4 | . 1 . 3 . Targets Rammed 4 | . 1 . 3 . Kicked . | . . . . . Crushed . | . . . . . Highest Temperature 97 | . . 97 54 46 Average Temperature 34 | . . 43 21 21 Received Heat Transfer 180 | . . 36 18 126 Siege Activations . | . . . . . Robots Corrupted . | . . . . . Combat Hostiles . | . . . . . Parts Fried . | . . . . . Impact Corruptions . | . . . . . Robots Melted . | . . . . . Combat Hostiles . | . . . . . Parts Melted 3 | . . 1 2 . Heat Transferred 1184 | . . 777 407 . Parts Sabotaged . | . . . . . Parts Stolen . | . . . . . Parts Stripped . | . . . . . Power Chain Reactions . | . . . . . Missiles Intercepted . | . . . . . Alert | -11 -10 -9 -8 -7 ------- Run | Scr Mat Mat Mat Fac Peak Influence 187 | . 36 182 187 139 Initial 61 | . . 10 55 61 Average 84 | . 5 82 129 85 Maximum Alert Level . | . . . . . Low Security (%) 100 | 100 100 100 100 100 Level 1 . | . . . . . Level 2 . | . . . . . Level 3 . | . . . . . Level 4 . | . . . . . Level 5 . | . . . . . High Security . | . . . . . Max Security . | . . . . . Squads Dispatched 3 | . . . 2 1 Investigation . | . . . . . Extermination . | . . . . . Reinforcement 3 | . . . 2 1 Assault . | . . . . . Garrison . | . . . . . Intercept . | . . . . . Construction Impeded . | . . . . . Haulers Reinforced . | . . . . . Active Scanning Responses . | . . . . . Cargo Convoy Interrupts . | . . . . . Stealth | -11 -10 -9 -8 -7 --------- Run | Scr Mat Mat Mat Fac Distress Signals . | . . . . . Communications Jammed . | . . . . . Distress Signals . | . . . . . Times Spotted 35 | . 5 6 12 12 Peak Tracking Total 8 | . 5 5 7 8 Tactical Retreats 4 | . 1 . 1 2 Traps | -11 -10 -9 -8 -7 ------- Run | Scr Mat Mat Mat Fac Traps Triggered 1 | . . . 1 . Indirectly . | . . . . . Trap Hack Attempts . | . . . . . Triggered . | . . . . . Disarmed . | . . . . . Reprogrammed . | . . . . . Reused . | . . . . . Traps Extracted . | . . . . . Installed . | . . . . . Triggered . | . . . . . Machines | -11 -10 -9 -8 -7 ---------- Run | Scr Mat Mat Mat Fac Machines Disabled 1 | . . . 1 . Max in Single Turn 1 | . . . 1 . Machines Sabotaged . | . . . . . Garrisons Compromised . | . . . . . Overloaded Fab Kills . | . . . . . Hacking | -11 -10 -9 -8 -7 --------- Run | Scr Mat Mat Mat Fac Machines Accessed 5 | . 2 1 1 1 Terminals 5 | . 2 1 1 1 Fabricators . | . . . . . Repair Stations . | . . . . . Recycling Units . | . . . . . Scanalyzers . | . . . . . Garrison Access . | . . . . . Total Hacks 8 | . 3 1 3 1 Successful 5 | . 1 1 2 1 Failed 3 | . 2 . 1 . Catastrophic 1 | . 1 . . . Database Lockouts . | . . . . . Manual 8 | . 3 1 3 1 Terminals 8 | . 3 1 3 1 Fabricators . | . . . . . Repair Stations . | . . . . . Recycling Units . | . . . . . Scanalyzers . | . . . . . Garrison Access . | . . . . . Terminal Hacks 5 | . 1 1 2 1 Level Access Points 3 | . 1 1 1 . Branch Access Points 2 | . . . 1 1 Fabricator Hacks . | . . . . . Repair Station Hacks . | . . . . . Recycling Unit Hacks . | . . . . . Scanalyzer . | . . . . . Garrison Access Hacks . | . . . . . Unauthorized Hacks . | . . . . . Terminals . | . . . . . Fabricators . | . . . . . Repair Stations . | . . . . . Recycling Units . | . . . . . Scanalyzers . | . . . . . Garrison Access . | . . . . . Data Cores Recovered . | . . . . . Used . | . . . . . Hacking Detections 2 | . 1 . 1 . Full Trace Events . | . . . . . Feedback Events . | . . . . . Feedback Blocked . | . . . . . Robot Schematics Acquired . | . . . . . Robots Built . | . . . . . Authchips . | . . . . . Time . | . . . . . Total Robot Build Rating . | . . . . . Part Schematics Acquired . | . . . . . Parts Built . | . . . . . Authchips . | . . . . . Time . | . . . . . Total Part Build Rating . | . . . . . Parts Repaired . | . . . . . Time . | . . . . . Parts Recycled . | . . . . . Recycled Matter . | . . . . . Retrieved Matter . | . . . . . Retrieved Components . | . . . . . Parts Scanalyzed . | . . . . . Part Schematics Acquired . | . . . . . Parts Damaged . | . . . . . Bothacking | -11 -10 -9 -8 -7 ------------ Run | Scr Mat Mat Mat Fac Used RIF Installer . | . . . . . Robots Hacked . | . . . . . Non-combat . | . . . . . Combat . | . . . . . Robot Hacks Applied . | . . . . . Relay Couplers Released . | . . . . . Robots Rewired . | . . . . . Allies Hacked . | . . . . . Hacks Repelled . | . . . . . Allies | -11 -10 -9 -8 -7 -------- Run | Scr Mat Mat Mat Fac Total Allies . | . . . . . Largest Group . | . . . . . Highest-Rated Group . | . . . . . Highest-Rated Ally . | . . . . . Total Orders . | . . . . . Ally Attacks . | . . . . . Total Damage . | . . . . . Kills . | . . . . . Allies Corrupted . | . . . . . Allies Melted . | . . . . . Intel | -11 -10 -9 -8 -7 ------- Run | Scr Mat Mat Mat Fac Robot Analysis Total . | . . . . . Derelict Logs Recovered . | . . . . . Drone Launches . | . . . . . Drone Recoveries . | . . . . . Exploration | -11 -10 -9 -8 -7 ------------- Run | Scr Mat Mat Mat Fac Turns Passed 391 | 10 51 103 109 118 Spaces Moved 621 | 20 99 115 161 226 Core 361 | 20 99 115 127 . Treads . | . . . . . Legs . | . . . . . Wheels . | . . . . . Hover 260 | . . . 34 226 Flight . | . . . . . Fastest Speed 50 | 50 50 50 50 50 Average Speed 50 | 50 50 50 50 50 Slowest Speed 50 | 50 50 50 50 50 Overloaded Moves . | . . . . . Propulsion Burnouts . | . . . . . Robots Hopped . | . . . . . Cave-ins Triggered . | . . . . . Exploration Rate (%) 15 | 3 23 18 21 13 Regions Visited 4 Branch Regions . Pre-discovered Areas . | . . . . . Known Exits Taken 4 | 1 1 1 1 . Unknown Exits Taken . | . . . . . Scrap Searched . | . . . . . Spaces Dug . | . . . . . Terrain Destroyed . | . . . . . Melee . | . . . . . Projectile . | . . . . . AOE . | . . . . . Terrain Rammed . | . . . . . Walls Destroyed . | . . . . . Machines Disabled . | . . . . . Actions | -11 -10 -9 -8 -7 --------- Run | Scr Mat Mat Mat Fac Total 659 | 19 99 137 176 228 Wait . | . . . . . Move 617 | 19 98 114 160 226 Hop . | . . . . . Pick Up . | . . . . . Fast Attach 2 | . . 1 1 . Attach . | . . . . . Detach . | . . . . . Swap . | . . . . . Drop . | . . . . . Fire 36 | . . 22 12 2 Melee . | . . . . . Ram 4 | . 1 . 3 . Kick . | . . . . . Crush . | . . . . . Escape Stasis . | . . . . . Rewire . | . . . . . Trap . | . . . . . Miscellaneous . | . . . . . Route ------- -11/Scrapyard -10/Materials (discovered 3 exits: *Mat x3) -9/Materials (discovered 3 exits: *Mat x3) -8/Materials (discovered 3 exits: *Fac x3) -7/Factory (discovered 4 exits: *Sto x2 / Low x2) History --------- Turn | Location | Event 3 | -11/Scrapyard | Identified exit to Materials 3 | -11/Scrapyard | Discovered exit to Materials (range 15) 11 | -11/Scrapyard | Entered Materials 41 | -10/Materials | Identified exit to Materials 62 | -10/Materials | Entered another Materials area 64 | -9/Materials | Reached level 2 64 | -9/Materials | Reached level 3 148 | -9/Materials | Identified exit to Materials 148 | -9/Materials | Reached level 4 165 | -9/Materials | Entered another Materials area 167 | -8/Materials | Reached level 5 167 | -8/Materials | Reached level 6 185 | -8/Materials | Core integrity fell below 50% 199 | -8/Materials | Identified exit to Factory 274 | -8/Materials | Entered Factory 275 | -7/Factory | Core integrity fell below 50% 276 | -7/Factory | Reached level 7 276 | -7/Factory | Reached level 8 276 | -7/Factory | Reached level 9 290 | -7/Factory | Identified exit to Storage 290 | -7/Factory | Identified exit to Lower Caves 303 | -7/Factory | Build established: Hacker-Mutant 341 | -7/Factory | Core integrity fell below 20% 392 | -7/Factory | Self-destructed Last Messages --------------- 00301_ K-01 Serf pushes S-27 Virus. 00302_ K-01 Serf pushes B-48 Gladiator. 00302_ K-01 Serf pushes G-47 Trooper. 00302_ K-01 Serf pushes S-27 Virus. 00302_ K-01 Serf pushes B-48 Gladiator. 00303_ K-01 Serf pushes G-47 Trooper. 00303_ K-01 Serf pushes S-27 Virus. 00304_ K-01 Serf pushes G-47 Trooper. 00308_ K-01 Serf latches onto G-47 Trooper. 00308_ K-01 Serf pushes G-47 Trooper. 00309_ K-01 Serf latches onto G-47 Trooper. 00309_ K-01 Serf pushes G-47 Trooper. 00338_ Critical hit (Burn: +37). 00368_ ALERT: Suspicious intruders detected, dispatching Cutter reinforcements to area. 00387_ Upgraded: Core Integrity (+1000) 00388_ Knocked back. 00389_ Penetrated by Slug. 00389_ Knocked back. 00391_ Slug penetrates Wall. Map ----- +----------------------------------------------------+ | """""""" """"""""" +???????? | | #???????? | | """""""" """"""""" #???????? | | ##########+######### #???????? | | """""""" """"""""" #???????# ## #???????? | | #???????# ! ## #???????? | | """""""" """"""""" ####????# ## #???????? | | #????# """ """ ## #???????? | | #????# """ """ + #???????? | | ###### """ """ ####???????? | | ##########/##### + #??????????? | | #???# #?# # / #??????????? | | #???# #?# ######+##+#??????????? | | ! #???# #?# ?? ?????????????? | | !!!#???# #?## T###+###? #?????????????? | | ! !!!#???# #??####??????# #?????????????? | | !!!#???# #????????????+ #?????????????? | | #???# #????????????## #?????????????? | | #???# / #?????????????# #?????????????? | | #???# #?????????????# #?????????????? | | #???########+####??????????? ??????????????? | | #???????# ###??##+###? ??????????????? | | #???????# # ### #? ??????????????? | | #???????# ## #?????????????? | | #???????# T cc H> +?????????????? | | #???????# ! c@ Y ###??????????????? | | #???????# % ##; #????????????????? | | #???????# ###?;## ###????????????????? | | #???????#########????#??#??????????????????? | | #??????????????????????????????????????????? | | #?????????????????????? ???????????????????? | | #?????????????????????? ???????????????????? | | #?????????????????????? #####??????????????? | | #?????????????????????? #??????????????? | | #?????????????????????? #??????????????? | | #?????????????????????? #??????????????? | | +?????????????????????# +??????????????? | | #?????????????????????# #??????????????? | | # #?????????????????????# #??????????????? | | # ###################+### ####???????????? | | # # ??????????? | | # #! """?????????? | | # # """"????????? | | # # """" "??????? | | # #% """" """????? | | ####/######################## # ????? | | ??? ?????????# """"" # # """" """"???? | | ??? ] ????????# ""T"" # # """" """"???? | | ??! ????????# # # """" """" ??? | | ?? !! ]???????# ] # # """" """" #?? | +----------------------------------------------------+ Best States ------------- Heat Dissipation 25 Energy Generation 5 Energy Capacity 100 Matter Stores 149 Matter Capacity 300 Sight Range 16 Terrain Scan Density 10 Resistance: KI 35 Resistance: TH 35 Resistance: EX 35 Resistance: EM 35 Resistance: I 35 Resistance: S 35 Resistance: P 35 Evasion (%) 55 Offensive Hacking 20 Item Schematics ----------------- None Robot Schematics ------------------ None Fabricated ------------ Nothing Alien Tech Used ----------------- None Achievements -------------- None Challenges ------------ None RPGLIKE | -11 -10 -9 -8 -7 --------- Run | Scr Mat Mat Mat Fac Levels Raised 8 | . . 3 2 3 XP Earned 19315 | 6000 205 4306 4021 4783 XP Spent 2400 | . . . . 2400 Upgrades 20 | . . . . 20 Core Integrity 20 | . . . . 20 Protomatter Created 100 | . . 83 17 . Protomatter Decayed 89 | . . 72 17 . Game ------ Seed NovaEnergyCorpse Manual? 0 Play Time 00:06:06 Cumulative 336.2 hours Start 2021.10.26 @ 02:46:19 End 2021.10.26 @ 02:50:58 Sessions 1 Manual Loads 0 Difficulty Explorer Special Mode Winter2019/RPGLIKE Game No. 102 Rogue 0 Adventurer 0 Explorer 102 Win Type - Total 26 Types 15/3/1/1/1/2/1/2/0 Lore% 71 Gallery% 86 Achievement% 81 Wizard Run 0 Options --------- ASCII 1 Keyboard 0 Movement Vi Keybinds 0 Fullscreen 1 Font 18/X11Bold Map View 76x50 Tactical HUD 1 Map Filters NONE Filters NONE Steam 1 RUN: 4fe08fd8-e915-4ec8-9917-a7ee1dd972dd